Cogmind - Beta 15 @@@ ROGUE MODE // 2025.08.03 @ 09:08:04 Player: Dadrick Result: Destroyed by G-47 Trooper with Particle Gun Performance ------------- Evolutions (0) 0 Regions Visited (2) 400 Robots Destroyed (30) 150 Value Destroyed (344) 344 Prototype IDs (2) 40 Alien Tech Used (0) 0 Bonus (0) 0 TOTAL SCORE: 934 Bonus ------- None Cogmind --------- Core Integrity 0/250 Matter 238/300 Energy 100/100 System Corruption 3% Temperature Cool (9) Movement Treading (240) Ox1 Location -10/Mines Parts ------- > --- POWER (1) -------- (None) > --- PROPULSION (2) --- Light Treads > --- UTILITY (2) ------ Large Storage Unit Hardened Light Armor Plating > --- WEAPON (2) ------- Beam Cannon Battle Cannon > --- INVENTORY (15) --- Heat Sink High-capacity Storage Unit Seismic Detector ECM Suite Hardened Light Armor Plating Beam Cannon Beam Cannon Beam Cannon Light Assault Rifle Light Assault Rifle EMP Blaster EMP Blaster Mining Laser Peak State ------------ > --- POWER ------------ Light Ion Engine > --- PROPULSION ------- Light Treads Light Treads > --- UTILITY ---------- Large Storage Unit Hardened Light Armor Plating > --- WEAPON ----------- Battle Cannon EMP Blaster > --- INVENTORY -------- Light Ion Engine Light Treads Heat Sink High-capacity Storage Unit Seismic Detector ECM Suite Hardened Light Armor Plating Beam Cannon Beam Cannon Beam Cannon Beam Cannon Light Assault Rifle Light Assault Rifle EMP Blaster Mining Laser [Rating: 11] Favorites ----------- Power Light Ion Engine Engine Light Ion Engine Propulsion Light Treads Treads Light Treads Utility Seismic Detector Device Seismic Detector Storage Small Storage Unit Protection Hardened Light Armor Plating Weapon Light Assault Rifle Energy Cannon Beam Cannon Ballistic Gun Light Assault Rifle Ballistic Cannon Battle Cannon Launcher EMP Blaster Special Weapon Mining Laser Build | -11 -10 -10 ------- Run | Yrd Mat Min Slots Evolved . | . . . Power . | . . . Propulsion . | . . . Utility . | . . . Weapon . | . . . Parts Attached 21 | 7 8 6 Power 3 | 1 1 1 Engine 3 | 1 1 1 Core . | . . . Reactor . | . . . Propulsion 3 | 2 1 . Treads 3 | 2 1 . Leg . | . . . Wheel . | . . . Hover . | . . . Flight . | . . . Utility 6 | 2 3 1 Device 2 | 1 1 . Storage 3 | 1 2 . Processor . | . . . Hackware . | . . . Protection 1 | . . 1 Artifact . | . . . Weapon 9 | 2 3 4 Energy Gun . | . . . Energy Cannon 2 | . . 2 Ballistic Gun 4 | 2 2 . Ballistic Cannon 1 | . . 1 Launcher 1 | . . 1 Special Weapon 1 | . 1 . Impact Weapon . | . . . Slashing Weapon . | . . . Piercing Weapon . | . . . Special Melee Weapon . | . . . Unidentified Prototypes . | . . . Parts Lost 5 | . 1 4 Power 3 | . 1 2 Propulsion 2 | . . 2 Utility . | . . . Weapon . | . . . Highest Loss Streak 3 | . 1 3 To Critical Strikes 1 | . . 1 Average Backups 9 | 3 8 14 Power . | . . . Propulsion . | . . . Utility 3 | 1 3 5 Weapon 4 | . 3 8 Tool/Special . | . . . Unused Backups 9 | . 2 7 Power . | . . . Propulsion . | . . . Utility 4 | . 1 3 Weapon 4 | . . 4 Tool/Special 1 | . 1 . Average Slot Usage (%) 96 | . 100 89 Engine 12 | . 14 9 Treads 25 | . 28 22 Device 9 | . 14 . Storage 14 | . 14 14 Protection 4 | . . 14 Energy Cannon 3 | . . 10 Ballistic Gun 19 | . 27 5 Ballistic Cannon 3 | . . 11 Peak Build Rating 11 | 7 8 11 Average Rating 7 | 6 7 9 On Entrance 5 | . 7 8 Naked Turns . | . . . Heaviest Build 35 | 11 27 35 Greatest Support 40 | 40 40 40 Greatest Overweight (x) 1 | . . 1 Average Overweight (x) . | . . . Largest Inventory Capacity 20 | 8 20 15 Average Capacity 10 | 7 9 15 Most Carried 15 | 5 15 15 Average Carried 9 | 3 8 14 Final Capacity 15 | 8 15 15 Final Carried 15 | 5 15 13 Class Distribution -------------------- 100% | Mutant Dominant Class ---------------- Mutant | -10/Materials Mutant | -10/Mines Resources | -11 -10 -10 ----------- Run | Yrd Mat Min Matter Collected 736 | 336 269 131 Remotely . | . . . Salvage Created 959 | 235 589 135 Parts 61 | 19 38 4 Haulers Intercepted 2 | . 2 . Recyclers Shooed 2 | . 2 . Parts Field Recycled . | . . . Retrieved Matter . | . . . Parts Self-Destructed . | . . . Prevented . | . . . Kills | -11 -10 -10 ------- Run | Yrd Mat Min Combat Hostiles Destroyed 22 | . 12 10 Guns 15 | . 12 3 Cannons 4 | . . 4 AOE 3 | . . 3 Classes Destroyed 7 | 2 4 1 Tunneler 7 | 7 . . Hauler 2 | . 2 . Recycler 4 | 1 3 . Watcher 2 | . 2 . Swarmer 12 | . 9 3 Grunt 3 | . 3 . Assembled 7 | . . 7 Best Kill Streak 6 | 4 6 3 Combat Bots Only 5 | . 5 3 Max Kills in Single Turn 2 | 1 1 2 Gunslinging . | . . . Exploded 2 | . . 2 Melee . | . . . Uniques/NPCs Destroyed . | . . . Combat | -11 -10 -10 -------- Run | Yrd Mat Min Hostile Shots Fired 150 | . 71 79 Missed 41 | . 24 17 Hits 109 | . 47 62 Melee 5 | . . 5 Projectile 104 | . 47 57 Critical Strikes 4 | . 2 2 Damage Taken 1260 | . 446 814 Core 260 | . 86 174 Absorbed by Shields . | . . . Core Remaining (%) 100 | 100 . . Volleys Fired 141 | 33 81 27 Largest 2 | 2 2 2 Hottest 100 | 40 100 93 Shots Fired 270 | 66 154 50 Gun 232 | 66 146 20 Cannon 26 | . . 26 Launcher 4 | . . 4 Special 8 | . 8 . Kinetic 245 | 66 146 33 Thermal 21 | . 8 13 Explosive . | . . . Electromagnetic 4 | . . 4 Robot Hit Streak 10 | 10 10 4 Robot Miss Streak 6 | 5 4 6 Penetration Max . | . . . Secondary Targets 5 | . 4 1 Max Gunslinging Chain 1 | . 1 1 Shots Hit Robots 156 | 43 90 23 Core Hits 69 | 14 35 20 Critical Kills . | . . . Critical Parts Destroyed 1 | . 1 . Critical Strikes 1 | . 1 . Destroy 1 | . 1 . Melee Attacks . | . . . Impact . | . . . Slashing . | . . . Piercing . | . . . Sneak Attacks . | . . . Combat Hostiles . | . . . Follow-up Attacks . | . . . Damage Inflicted 1851 | 381 771 699 Guns 1286 | 381 771 134 Cannons 182 | . . 182 Explosions 383 | . . 383 Melee . | . . . Ramming . | . . . Kinetic 1362 | 381 771 210 Thermal 106 | . . 106 Explosive . | . . . Electromagnetic 383 | . . 383 Impact . | . . . Slashing . | . . . Piercing . | . . . Highest Corruption 3 | . . 3 Average Corruption 3 | . . 3 Corruption Purged . | . . . Corruption Blocked . | . . . Effects 3 | . . 3 Message Errors 1 | . . 1 Energy Discharges 1 | . . 1 Data Loss (major) 1 | . . 1 Overload Shots . | . . . Overflow Damage 13 | . . 13 Projectiles . | . . . Explosions 13 | . . 13 Melee . | . . . Knockbacks 2 | . . 2 Impact . | . . . Kinetic 2 | . . 2 Secondary . | . . . Self-Inflicted Damage 14 | . . 14 Shots 1 | . . 1 Rammed . | . . . Targets Rammed . | . . . Kicked . | . . . Crushed . | . . . Highest Temperature 163 | . 60 163 Average Temperature 34 | . 20 43 Received Heat Transfer 196 | . 138 58 Siege Activations . | . . . Martial Activations . | . . . Shielding Activations . | . . . Robots Disrupted . | . . . Combat Hostiles . | . . . Robots Corrupted . | . . . Combat Hostiles . | . . . Parts Fried . | . . . Impact Corruptions . | . . . Robots Melted . | . . . Combat Hostiles . | . . . Parts Melted . | . . . Heat Transferred 222 | . . 222 Parts Sabotaged . | . . . Parts Stolen . | . . . Parts Stripped . | . . . Power Chain Reactions 1 | . . 1 Alert | -11 -10 -10 ------- Run | Yrd Mat Min Maximum Alert Level . | . . . Low Security (%) 100 | 100 100 100 Level 1 . | . . . Level 2 . | . . . Level 3 . | . . . Level 4 . | . . . Level 5 . | . . . High Security . | . . . Max Security . | . . . Peak Influence 115 | 10 115 60 Initial . | . . . Average 22 | 1 37 6 Influence Increases 482 | 40 370 72 Destroy 0b10 Robot/C 300 | . 240 60 Destroy 0b10 Robot/NC 75 | 40 35 . Destroy Leader 68 | . 58 10 Successful Hack 29 | . 29 . Destroy Structure 10 | . 8 2 Influence Decreases 482 | 40 370 72 Time Decay 472 | 40 360 72 Lost Part 10 | . 10 . Squads Dispatched 1 | . 1 . Investigation . | . . . Extermination . | . . . Reinforcement 1 | . 1 . Assault . | . . . Garrison . | . . . Intercept . | . . . Searches Triggered . | . . . Construction Impeded . | . . . Haulers Reinforced . | . . . Active Scanning Responses . | . . . Cargo Convoy Interrupts . | . . . Stealth | -11 -10 -10 --------- Run | Yrd Mat Min Distress Signals 3 | . 3 . Communications Jammed . | . . . Distress Signals . | . . . Times Spotted 52 | . 24 28 Peak Tracking Total 16 | . 5 16 Tactical Retreats 4 | . . 4 Traps | -11 -10 -10 ------- Run | Yrd Mat Min Traps Triggered . | . . . Indirectly . | . . . Trap Hack Attempts . | . . . Triggered . | . . . Disarmed . | . . . Reprogrammed . | . . . Reused . | . . . Traps Extracted . | . . . Installed . | . . . Triggered . | . . . Machines | -11 -10 -10 ---------- Run | Yrd Mat Min Machines Disabled . | . . . Max in Single Turn . | . . . Machines Repaired . | . . . Machines Dismantled . | . . . Machines Sabotaged . | . . . Overloaded Fab Kills . | . . . Hacking | -11 -10 -10 --------- Run | Yrd Mat Min Machines Accessed 9 | . 8 1 Terminals 8 | . 7 1 Fabricators . | . . . Repair Stations . | . . . Recycling Units 1 | . 1 . Scanalyzers . | . . . Garrison Access . | . . . Total Hacks 18 | . 16 2 Successful 10 | . 10 . Failed 8 | . 6 2 Catastrophic . | . . . Database Lockouts . | . . . Manual 14 | . 12 2 Terminals 17 | . 15 2 Fabricators . | . . . Repair Stations . | . . . Recycling Units 1 | . 1 . Scanalyzers . | . . . Garrison Access . | . . . Terminal Hacks 3 | . 3 . Prototype ID Bank 1 | . 1 . Terminal Index 1 | . 1 . Locate Traps 1 | . 1 . Fabricator Hacks . | . . . Repair Station Hacks . | . . . Recycling Unit Hacks 1 | . 1 . Report Inventory 1 | . 1 . Scanalyzer . | . . . Garrison Access Hacks . | . . . Unauthorized Hacks 6 | . 6 . Terminals 6 | . 6 . Botnet 1 | . 1 . Skim 5 | . 5 . Fabricators . | . . . Repair Stations . | . . . Recycling Units . | . . . Scanalyzers . | . . . Garrison Access . | . . . Data Cores Recovered . | . . . Used . | . . . Hacking Detections 8 | . 7 1 Full Trace Events . | . . . Feedback Events . | . . . Feedback Blocked . | . . . Robot Schematics Acquired . | . . . Robots Built . | . . . Authchips . | . . . Time . | . . . Total Robot Build Rating . | . . . Part Schematics Acquired . | . . . Parts Built . | . . . Authchips . | . . . Time . | . . . Total Part Build Rating . | . . . Parts Repaired . | . . . Time . | . . . Parts Recycled . | . . . Recycled Matter . | . . . Retrieved Matter . | . . . Retrieved Components . | . . . Parts Scanalyzed . | . . . Part Schematics Acquired . | . . . Parts Damaged . | . . . Bothacking | -11 -10 -10 ------------ Run | Yrd Mat Min Used RIF Installer . | . . . Robots Hacked . | . . . Non-combat . | . . . Combat . | . . . Robot Hacks Applied . | . . . Relay Couplers Released . | . . . Fabnet Peak Effective % . | . . . Robots Rewired . | . . . Allies Hacked . | . . . Hacks Repelled . | . . . Allies | -11 -10 -10 -------- Run | Yrd Mat Min Total Allies . | . . . Largest Group . | . . . Highest-Rated Group . | . . . Highest-Rated Ally . | . . . Total Orders . | . . . Ally Attacks . | . . . Total Damage . | . . . Kills . | . . . Allies Corrupted . | . . . Allies Melted . | . . . Intel | -11 -10 -10 ------- Run | Yrd Mat Min Active Infowar (turns) 1482 | 227 1255 . Seismic 1482 | 227 1255 . Robot Analysis Total . | . . . Derelict Logs Recovered 1 | . . 1 Drone Launches . | . . . Drone Recoveries . | . . . Exploration | -11 -10 -10 ------------- Run | Yrd Mat Min Turns Passed 2260 | 340 1255 665 Spaces Moved 1008 | 151 566 291 Core 2 | 2 . . Treads 1006 | 149 566 291 Legs . | . . . Wheels . | . . . Hover . | . . . Flight . | . . . Fastest Speed 50 | 50 160 160 Average Speed 166 | 158 160 181 Slowest Speed 240 | 160 160 240 Overloaded Moves . | . . . Propulsion Burnouts . | . . . Robots Hopped . | . . . Potential Cave-ins . | . . . Cave-ins Triggered . | . . . Exploration Rate (%) 53 | 9 96 55 Regions Visited 2 Branch Regions 1 Pre-discovered Areas . | . . . Known Exits Taken . | . . . Unknown Exits Taken 2 | 1 1 . Scrap Searched 1 | . . 1 Spaces Dug 7 | . 7 . Terrain Destroyed 12 | . 8 4 Melee . | . . . Projectile 12 | . 8 4 AOE . | . . . Terrain Rammed . | . . . Walls Destroyed . | . . . Machines Disabled . | . . . Actions | -11 -10 -10 --------- Run | Yrd Mat Min Total 1343 | 195 771 377 Wait 142 | . 91 51 Move 1006 | 150 565 291 Hop . | . . . Pick Up 19 | 5 14 . Fast Attach 8 | 7 . 1 Attach 3 | . 1 2 Detach . | . . . Swap 17 | . 13 4 Drop 7 | . 6 1 Fire 141 | 33 81 27 Melee . | . . . Ram . | . . . Kick . | . . . Crush . | . . . Escape Stasis . | . . . Rewire . | . . . Trap . | . . . Miscellaneous . | . . . Route ------- -11/Scrapyard -10/Materials (discovered 6 exits: *Mat x3 / *Min x2 / [*Sub]) -10/Mines (discovered 3 exits: Mat x2 / [*Sub]) History --------- Turn | Location | Event 6 | -11/Scrapyard | Discovered new exit (range 15) 341 | -11/Scrapyard | Entered Materials 342 | -10/Materials | Build established: Mutant 647 | -10/Materials | Discovered new exit (range 16) 796 | -10/Materials | Discovered new exit (range 16) 1079 | -10/Materials | Discovered new exit (range 8) 1115 | -10/Materials | Discovered new exit (range 14) 1168 | -10/Materials | Identified exit to Materials 1182 | -10/Materials | Discovered exit to Materials (range 16) 1243 | -10/Materials | Learned 2 Storage zone layouts 1306 | -10/Materials | Learned location of 1 exit from Storage 1357 | -10/Materials | Learned location of 2 exits from Mines 1430 | -10/Materials | Learned Materials emergency access door positions 1451 | -10/Materials | Learned Materials emergency access door positions 1482 | -10/Materials | Loaded intel: 14 trap records 1596 | -10/Materials | Entered Mines 1682 | -10/Mines | Learned Materials emergency access door positions 1719 | -10/Mines | A weapon hastily lodged in a ceiling crevice suddenly fell to the ground 1757 | -10/Mines | Discovered new exit (range 9) 1950 | -10/Mines | Assembled infested the area 1955 | -10/Mines | Assisted by a Guerilla fighting off Assembled 1970 | -10/Mines | Core integrity fell below 50% 1985 | -10/Mines | Core integrity fell below 20% 2017 | -10/Mines | Lost 3 parts (1p2n) 2261 | -10/Mines | Destroyed by G-47 Trooper with Particle Gun Last Messages --------------- 01986_ Lgt. Treads destroyed. 01992_ as-95106 destroyed. 02013_ as-08063 knocked back. 02016_ as-08063 destroyed. 02031_ as-88864 knocked back. 02033_ Lgt. Ion Engine destroyed. 02037_ as-88864 destroyed. 02045_ Acquired 7 matter. 02057_ Acquired 11 matter. 02164_ K-01 Serf collects debris. 02169_ Acquired 25 matter. 02171_ K-01 Serf collects debris. 02193_ U-05 Engineer lays Concrete. 02193_ K-01 Serf collects debris. 02194_ U-05 Engineer lays Concrete. 02195_ System corrupted: Substantial component data lost. 02195_ U-05 Engineer builds a Wall. 02197_ K-01 Serf collects debris. 02199_ U-05 Engineer builds a Wall. 02224_ 3|R95Y:N0|X=VC99:V/ APMJDB02 Map ----- +----------------------------------------------------+ | ??# #?????# ##?????????????# ##### #?# | | ??# #?????## ############### ##??#### #?? | | ### ######## % #?????### ##? | | ! ############### #???????## ## | | ! = ##?????????????# #???????## # | | ############ ##??????????????# #??????##% # | | ???????????## ##???????????????# #?????## # | | ????????????####????????????????# ####### ## | | ????????????????????????????????# %## ##? | | ????????????????????????????????###### ## ####?? | | ?????????????????????????????????????# # # ##??? | | ?????????????????????????????????????# ##?# | | ????????????????????????????????????## # ### | | ??????????????????????????????####### # # ## | | ?????????????????????????????## ## | | ??????????????##??????????#### ## %# | | ?????????????## #????????#;# ## ## # ##### | | ?????????????# #??????## # # #?### | | ?????????????# #????## ## % ### #???# | | ?????????????# #???# ## #???# | | ??????????????# ##??# % ##??# | | ???????????????# ### % g % #??# | | ????????????????## #??# | | ?????????????# #; % #####??# | | ????????????# ##??????# | | ????????????# @ ######?####### | | ???????????# % ####?????## | | ??????????# ####???????## | | ??????????? % #####?????????## | | ??????????? < ###??????????????# # | | ????????????# #?????????????????# ###### | | ????????????### #??????????????????## #????? | | ??????????????## ????????????????????# #????? | | ???????????????## %????????????????????# ###????? | | ????????????????# ?????????????????????##????????? | | ????????????????#????????????????????????????????? | | ?????????????????????????????????????????????????? | | ?????????????????????????????????????????????????? | | ?????????????????????????????????????????????????? | | ?????????????????????????????????????????????????? | | ?????????????????????????????????????????????????? | | ?????????????????????????????????????????????????? | | ?????????????????????????????????????????????????? | | ?????????????????????????????????????????????????? | | ?????????????????????????????????????????????????? | | ?????????????????????????????????????????????????? | | ?????????????????????????????????????????????????? | | ?????????????????????????????????????????????????? | | ?????????????????????????????????????????????????? | | ?????????????????????????????????????????????????? | +----------------------------------------------------+ Best States ------------- Heat Dissipation 25 Energy Generation 10 Energy Capacity 125 Matter Stores 300 Matter Capacity 300 Sight Range 16 Terrain Scan Density 10 Armor Coverage 150 Evasion (%) 40 Recoil Reduction 2 Item Schematics ----------------- None Robot Schematics ------------------ None Fabricated ------------ Nothing Repaired ---------- Nothing Alien Tech Used ----------------- None Achievements -------------- None Challenges ------------ None Game ------ Seed BoltFissionMicroactuators Manual? 0 Play Time 00:17:06 Cumulative 235.9 hours Start 2025.08.03 @ 08:51:34 End 2025.08.03 @ 09:08:04 Sessions 1 Manual Loads 0 Difficulty Rogue Special Mode None Game No. 116 Rogue 95 Adventurer 21 Explorer 0 Win Type - Total 11 Types 8/0/2/1/0/0/0/0/0/0 Lore% 46 Gallery% 64 Achievement% 60 Wizard Run 0 Options --------- Layout 1 ASCII 0 Keyboard 0 Movement Mouse Keybinds 0 Fullscreen 2 Font 32/SmallcapsGlow Map View 77x35 Zoom Use 0% Tactical HUD 1 Map Filters NONE Filters NONE Steam 1 RUN: a0cf792f-ee3f-4d65-8560-39079308d184